bitfinex/quotes_BTCUSD_20241101
["timestamp","ask_amount","ask_price","bid_price","bid_amount"]
[1730446010178,0.0757,69309.0,69308.0,0.144283]
[1730446010408,0.0757,69309.0,69308.0,0.30573825]
[1730446010654,0.0911,69311.0,69310.0,0.167279]
[1730446010860,0.0757,69313.0,69312.0,0.167275]
[1730446011078,0.0757,69313.0,69312.0,0.30573025]
[1730446011294,0.0757,69313.0,69312.0,0.31382097]
[1730446013056,0.1657,69313.0,69312.0,0.16954597]
[1730446013743,0.309973,69313.0,69312.0,0.16954597]
[1730446013979,0.1657,69313.0,69312.0,0.16954597]
[1730446014628,0.309973,69313.0,69312.0,0.00809072]
[1730446015058,0.0919,69310.0,69307.0,0.24069576]
[1730446015323,0.0919,69310.0,69308.0,0.16145525]
[1730446015324,0.0795,69309.0,69308.0,0.16145525]
[1730446016205,0.223781,69309.0,69308.0,0.16145525]
[1730446016432,0.0795,69309.0,69308.0,0.16145525]
[1730446016624,0.0795,69309.0,69303.0,0.288585]
[1730446016625,0.09,69308.0,69303.0,0.023]
[1730446016874,0.144287,69306.0,69305.0,0.023]
[1730446017115,0.316987,69306.0,69305.0,0.16145525]
[1730446017341,0.1727,69306.0,69305.0,0.16145525]
[1730446018256,0.316987,69306.0,69305.0,0.16145525]
[1730446018468,0.1727,69306.0,69305.0,0.16145525]
[1730446023285,0.316987,69306.0,69305.0,0.16801712]
[1730446023734,0.316987,69306.0,69305.0,0.16145525]
[1730446024197,0.288579,69305.0,69297.0,0.144305]
[1730446024418,0.1443,69300.0,69299.0,0.023]
[1730446024678,0.1443,69300.0,69299.0,0.17104]
[1730446024878,0.1443,69300.0,69299.0,0.13845525]
[1730446024879,0.2213,69300.0,69299.0,0.13845525]
[1730446025971,0.2213,69300.0,69299.0,0.16145525]
[1730446027293,0.077,69300.0,69292.0,0.023]
[1730446027497,0.241112,69294.0,69293.0,0.16145525]
[1730446028341,0.0968,69294.0,69293.0,0.16145525]
[1730446028799,0.0968,69294.0,69293.0,0.30576925]
[1730446029263,0.0968,69294.0,69293.0,0.16145525]
[1730446029704,0.0968,69294.0,69293.0,0.30576925]
[1730446029927,0.144303,69299.0,69297.0,0.023]
[1730446029928,0.0967,69299.0,69297.0,0.023]
[1730446030158,0.241003,69299.0,69297.0,0.13845525]
[1730446030397,0.144304,69298.0,69297.0,0.16145525]
[1730446032060,0.1743,69291.0,69287.0,0.00958872]
[1730446032279,0.318618,69291.0,69290.0,0.21769576]
[1730446032523,0.318618,69291.0,69287.0,0.13845525]
[1730446032524,0.144325,69288.0,69287.0,0.13845525]
[1730446032978,0.46294,69291.0,69287.0,0.13845525]
[1730446032979,0.31862,69291.0,69287.0,0.13845525]
[1730446033203,0.318619,69291.0,69287.0,0.28278125]
[1730446033433,0.1743,69291.0,69287.0,0.13845525]
[1730446033921,0.144322,69290.0,69287.0,0.13845525]
[1730446034160,0.1743,69291.0,69287.0,0.13845525]
[1730446034415,0.144325,69288.0,69287.0,0.16145525]
[1730446035098,0.144329,69286.0,69285.0,0.001642]
[1730446035329,0.325229,69286.0,69285.0,0.001642]
[1730446035543,0.47607725,69286.0,69285.0,0.001642]
[1730446036217,0.325229,69286.0,69285.0,0.001642]
[1730446041009,0.0833,69286.0,69285.0,0.16309725]
[1730446041437,0.0833,69286.0,69285.0,0.30742825]
[1730446041649,0.0833,69286.0,69285.0,0.16309725]
[1730446042083,0.144323,69289.0,69286.0,0.023]
[1730446042310,0.144323,69289.0,69286.0,0.16145525]
[1730446043185,0.0774,69291.0,69286.0,0.16145525]
[1730446043616,0.144321,69290.0,69286.0,0.30578325]
[1730446044502,0.144321,69290.0,69286.0,0.16145525]
[1730446044928,0.144325,69288.0,69286.0,0.16145525]
[1730446045138,0.144327,69287.0,69286.0,0.16145525]
[1730446045565,0.144327,69287.0,69285.0,0.001642]
[1730446045566,0.317029,69286.0,69285.0,0.001642]
[1730446046706,0.1727,69286.0,69285.0,0.001642]
[1730446046925,0.317029,69286.0,69285.0,0.001642]
[1730446048932,0.288646,69289.0,69285.0,0.001642]
[1730446049148,0.144329,69286.0,69285.0,0.001642]
[1730446049364,0.144323,69289.0,69286.0,0.023]
[1730446049582,0.144323,69289.0,69286.0,0.16145525]
[1730446051371,0.077621,69291.0,69288.0,0.167323]
[1730446051585,0.077621,69291.0,69288.0,0.30577825]
[1730446052269,0.000821,69291.0,69290.0,0.16732]
[1730446052487,0.000821,69291.0,69290.0,0.13845525]
[1730446052710,0.000821,69291.0,69290.0,0.16145525]
[1730446054076,0.000821,69291.0,69290.0,0.30577525]
[1730446054325,0.000821,69291.0,69290.0,0.16145525]
[1730446056951,0.145139,69291.0,69290.0,0.16145525]
[1730446059431,0.000821,69291.0,69290.0,0.16145525]
[1730446059660,0.000821,69291.0,69290.0,0.30577525]
[1730446062373,0.000821,69291.0,69290.0,0.16145525]
[1730446062595,0.000821,69291.0,69285.0,0.001642]
[1730446062596,0.288644,69290.0,69285.0,0.001642]
[1730446062780,0.144325,69288.0,69287.0,0.023]
[1730446063021,0.144325,69288.0,69287.0,0.16145525]
[1730446070975,0.144325,69288.0,69285.0,0.001642]
[1730446070976,0.144329,69286.0,69285.0,0.024642]
[1730446071195,0.320629,69286.0,69285.0,0.16309725]
[1730446072114,0.320629,69286.0,69285.0,0.001642]
[1730446072336,0.36362597,69286.0,69285.0,0.001642]
[1730446077849,0.320629,69286.0,69285.0,0.001642]
[1730446078058,0.36366673,69286.0,69285.0,0.001642]
[1730446078482,0.62513008,69286.0,69285.0,0.001642]
[1730446078689,0.62013008,69286.0,69285.0,0.001642]
[1730446079545,0.72513008,69286.0,69285.0,0.001642]
[1730446080420,0.72713008,69286.0,69285.0,0.001642]
[1730446080872,0.72513008,69286.0,69285.0,0.001642]
[1730446081104,0.83263507,69286.0,69285.0,0.001642]
[1730446082234,0.72513008,69286.0,69285.0,0.001642]
[1730446082877,0.72013008,69286.0,69285.0,0.001642]
[1730446084460,0.81308906,69286.0,69285.0,0.001642]
[1730446084690,0.81108906,69286.0,69285.0,0.001642]
[1730446085098,0.72513008,69286.0,69285.0,0.001642]
[1730446085302,0.81107683,69286.0,69285.0,0.001642]
[1730446087099,0.72513008,69286.0,69285.0,0.001642]
[1730446087316,0.81105077,69286.0,69285.0,0.001642]
[1730446088170,0.811048,69286.0,69285.0,0.001642]
[1730446088396,0.72713008,69286.0,69285.0,0.001642]
[1730446088600,0.865294,69286.0,69285.0,0.001642]
[1730446089659,0.58918403,69286.0,69285.0,0.001642]
[1730446090089,0.430629,69286.0,69285.0,0.001642]
[1730446091399,0.144329,69286.0,69285.0,0.001642]
[1730446092082,0.14515,69286.0,69285.0,0.001642]
[1730446093178,0.42395,69286.0,69285.0,0.001642]
[1730446093378,0.53939251,69286.0,69285.0,0.001642]
[1730446094534,0.54139251,69286.0,69285.0,0.001642]
[1730446094987,0.78376102,69286.0,69285.0,0.001642]
[1730446095852,0.78576102,69286.0,69285.0,0.001642]
[1730446096084,0.69988822,69286.0,69285.0,0.001642]
[1730446096527,0.83834347,69286.0,69285.0,0.001642]
[1730446097805,0.83634347,69286.0,69285.0,0.001642]
[1730446098015,0.83630592,69286.0,69285.0,0.001642]
[1730446098879,0.83630592,69286.0,69285.0,0.137842]
[1730446099293,0.83830592,69286.0,69285.0,0.137842]
[1730446099508,0.83630592,69286.0,69285.0,0.137842]
[1730446101424,0.83830592,69286.0,69285.0,0.137842]
[1730446105159,0.72286341,69286.0,69285.0,0.137842]
[1730446105378,0.72086341,69286.0,69285.0,0.137842]
[1730446107095,0.56240525,69286.0,69285.0,0.137842]
[1730446107320,0.72087374,69286.0,69285.0,0.137842]
[1730446108213,0.38949049,69286.0,69285.0,0.137842]
[1730446108393,0.18808893,69286.0,69285.0,0.137842]
[1730446108612,0.15015,69286.0,69285.0,0.137842]
[1730446109500,0.30086007,69286.0,69285.0,0.137842]
[1730446110129,0.15015,69286.0,69285.0,0.137842]
[1730446111865,0.14515,69286.0,69285.0,0.137842]
[1730446114434,0.29586007,69286.0,69285.0,0.137842]
[1730446116883,0.14515,69286.0,69285.0,0.137842]
[1730446120560,0.29586007,69286.0,69285.0,0.137842]
[1730446121016,0.14515,69286.0,69285.0,0.137842]
[1730446133443,0.14515,69286.0,69285.0,0.13676538]
[1730446136888,0.29586007,69286.0,69285.0,0.13676538]
[1730446137327,0.41149488,69286.0,69285.0,0.13676538]
[1730446139361,0.29586007,69286.0,69285.0,0.13676538]
[1730446142948,0.3603199,69286.0,69285.0,0.13676538]
[1730446143184,0.29586007,69286.0,69285.0,0.13676538]
[1730446143405,0.30086007,69286.0,69285.0,0.13676538]
[1730446143648,0.83809343,69286.0,69285.0,0.13676538]
[1730446143877,0.73063142,69286.0,69285.0,0.13676538]
[1730446144180,0.86910872,69286.0,69285.0,0.13676538]
[1730446144574,0.97157737,69286.0,69285.0,0.13676538]
[1730446145416,0.86410872,69286.0,69285.0,0.13676538]
[1730446146101,0.97157737,69286.0,69285.0,0.13676538]
[1730446148276,0.86410872,69286.0,69285.0,0.13676538]
[1730446149154,0.97165776,69286.0,69285.0,0.13676538]
[1730446149382,0.86410872,69286.0,69285.0,0.13676538]
[1730446150048,0.70543737,69286.0,69285.0,0.13676538]
[1730446150293,0.86426708,69286.0,69285.0,0.13676538]
[1730446152335,0.8643356,69286.0,69285.0,0.13676538]
[1730446152569,0.8593356,69286.0,69285.0,0.13676538]
[1730446152793,0.8643356,69286.0,69285.0,0.13676538]
[1730446154577,0.8104145,69286.0,69285.0,0.13676538]
[1730446157384,0.8124145,69286.0,69285.0,0.13676538]
[1730446157594,0.8104145,69286.0,69285.0,0.13676538]
[1730446166270,0.81046786,69286.0,69285.0,0.13676538]
[1730446169090,0.71986786,69286.0,69285.0,0.13676538]
[1730446169310,0.64436786,69286.0,69285.0,0.13676538]
[1730446169764,0.51172157,69286.0,69285.0,0.13676538]
[1730446170192,0.30410159,69286.0,69285.0,0.13676538]
[1730446170636,0.39020116,69286.0,69285.0,0.13676538]
[1730446170843,0.39007825,69286.0,69285.0,0.13676538]
[1730446171280,0.3039787,69286.0,69285.0,0.13676538]
[1730446174873,0.41160314,69286.0,69285.0,0.13676538]
[1730446175096,0.3039787,69286.0,69285.0,0.13676538]
[1730446175315,0.41160314,69286.0,69285.0,0.13676538]
[1730446175539,0.52101966,69286.0,69285.0,0.13676538]
[1730446175763,0.41170495,69286.0,69285.0,0.13676538]
[1730446176442,0.51410495,69286.0,69285.0,0.13676538]
[1730446177168,0.50910495,69286.0,69285.0,0.13676538]
[1730446177408,0.41170495,69286.0,69285.0,0.13676538]
[1730446179938,0.41171098,69286.0,69285.0,0.13676538]
[1730446180148,0.30404299,69286.0,69285.0,0.13676538]
[1730446181975,0.50466184,69286.0,69285.0,0.13676538]
[1730446182301,0.60466184,69286.0,69285.0,0.13676538]
[1730446182952,0.48294299,69286.0,69285.0,0.13676538]
[1730446189372,0.48300451,69286.0,69285.0,0.13676538]
[1730446190015,0.61225609,69286.0,69285.0,0.13676538]
[1730446190275,0.62425609,69286.0,69285.0,0.13676538]
[1730446190498,0.86341066,69286.0,69285.0,0.13676538]
[1730446190706,1.00188796,69286.0,69285.0,0.13676538]
[1730446192236,0.99988796,69286.0,69285.0,0.13676538]
[1730446192468,1.00188796,69286.0,69285.0,0.13676538]
[1730446193624,0.99988796,69286.0,69285.0,0.13676538]
[1730446193825,0.99982989,69286.0,69285.0,0.13676538]
[1730446195735,0.76456362,69286.0,69285.0,0.13676538]
[1730446197413,0.72190169,69286.0,69285.0,0.13676538]
[1730446198496,0.72185688,69286.0,69285.0,0.13676538]
[1730446200292,0.57840163,69286.0,69285.0,0.13676538]
[1730446200506,0.30400163,69286.0,69285.0,0.13676538]
[1730446200923,0.52346838,69286.0,69285.0,0.13676538]
[1730446201123,0.42667941,69286.0,69285.0,0.13676538]
[1730446201661,0.52667941,69286.0,69285.0,0.13676538]
[1730446202484,0.50340163,69286.0,69285.0,0.13676538]
[1730446202923,0.49840163,69286.0,69285.0,0.13676538]
[1730446203127,0.40900163,69286.0,69285.0,0.13676538]
[1730446203500,0.15975815,69286.0,69285.0,0.13676538]
[1730446203689,0.04389188,69286.0,69285.0,0.44255163]
[1730446203892,0.000821,69286.0,69285.0,0.44255163]
[1730446204539,0.000821,69286.0,69285.0,0.29822063]
[1730446205176,0.000821,69286.0,69285.0,0.13676538]
[1730446205177,0.34193897,69286.0,69285.0,0.13676538]
[1730446205463,0.38999701,69286.0,69285.0,0.13676538]
[1730446205663,0.38999725,69286.0,69285.0,0.13676538]
[1730446205866,0.411544,69286.0,69285.0,0.13676538]
[1730446206276,0.50585551,69286.0,69285.0,0.13676538]
[1730446206488,0.50085551,69286.0,69285.0,0.13676538]
[1730446206734,0.50585551,69286.0,69285.0,0.13676538]
[1730446208972,0.50085551,69286.0,69285.0,0.13676538]
[1730446210276,0.40407962,69286.0,69285.0,0.13676538]
[1730446210498,0.50086859,69286.0,69285.0,0.13676538]
[1730446210703,0.60850381,69286.0,69285.0,0.13676538]
[1730446211335,0.26738584,69286.0,69285.0,0.13676538]
[1730446211567,0.26738584,69286.0,69285.0,0.61735163]
[1730446211783,0.000821,69286.0,69285.0,0.61735163]
[1730446212624,0.000821,69286.0,69285.0,0.47302063]
[1730446213088,0.000821,69286.0,69285.0,0.61735163]
[1730446215752,0.000821,69286.0,69285.0,0.62694787]
[1730446216188,0.000821,69286.0,69285.0,0.61735163]
[1730446216430,0.000821,69286.0,69285.0,0.62694735]
[1730446217100,0.000821,69286.0,69285.0,0.63194735]
[1730446218390,0.000821,69289.0,69288.0,0.414383]
[1730446218614,0.000821,69289.0,69288.0,0.56243397]
[1730446218846,0.000821,69289.0,69288.0,0.55283825]
[1730446222413,0.145144,69289.0,69288.0,0.071358]
[1730446240528,0.24191124,69289.0,69288.0,0.071358]
[1730446244389,0.28487892,69289.0,69288.0,0.071358]
[1730446246236,0.145144,69289.0,69288.0,0.071358]
[1730446246418,0.000821,69289.0,69288.0,0.071358]
[1730446246633,0.145144,69289.0,69288.0,0.071358]
[1730446246860,0.000821,69289.0,69288.0,0.071358]
[1730446247343,0.145144,69289.0,69288.0,0.071358]
[1730446248200,0.24191124,69289.0,69288.0,0.071358]
[1730446249082,0.145144,69289.0,69288.0,0.071358]
[1730446250270,0.000821,69289.0,69288.0,0.238683]
[1730446250475,0.000821,69289.0,69288.0,0.319483]
[1730446250921,0.000821,69289.0,69288.0,0.175158]
[1730446251142,0.145144,69289.0,69288.0,0.096]
[1730446253811,0.000821,69289.0,69288.0,0.096]
[1730446254666,0.145144,69289.0,69288.0,0.096]
[1730446256842,0.24191124,69289.0,69288.0,0.073]
[1730446257061,0.145144,69289.0,69288.0,0.073]
[1730446263216,0.000821,69289.0,69288.0,0.073]
[1730446263424,0.145144,69289.0,69288.0,0.073]
[1730446263645,0.000821,69289.0,69288.0,0.073]
[1730446264327,0.04380155,69289.0,69288.0,0.073]
[1730446264594,0.18812455,69289.0,69288.0,0.073]
[1730446265244,0.145144,69289.0,69288.0,0.073]
[1730446265709,0.000821,69289.0,69288.0,0.096]
[1730446265940,0.000821,69289.0,69288.0,0.240325]
[1730446267305,0.000821,69289.0,69288.0,0.096]
[1730446268164,0.000821,69289.0,69288.0,0.240325]
[1730446269025,0.000821,69289.0,69288.0,0.37878025]
[1730446269477,0.000821,69289.0,69288.0,0.56734749]
[1730446269700,0.000821,69289.0,69288.0,0.64754749]
[1730446271054,0.000821,69289.0,69288.0,0.75754749]
[1730446271305,0.000821,69289.0,69288.0,0.75954749]
[1730446275573,0.000821,69289.0,69288.0,0.76831082]
[1730446276449,0.000821,69291.0,69290.0,0.25632]
[1730446276665,0.000821,69291.0,69290.0,0.59147525]
[1730446277608,0.000821,69291.0,69290.0,1.96164249]
[1730446277838,0.000821,69291.0,69290.0,2.0047799]
[1730446278476,0.000821,69291.0,69290.0,1.96164249]
[1730446278687,0.000821,69291.0,69290.0,1.86487525]
[1730446279152,0.000821,69291.0,69290.0,1.85787525]
[1730446279388,0.000821,69291.0,69290.0,1.86487525]
[1730446279625,0.000821,69291.0,69290.0,1.86287525]
[1730446280532,0.000821,69291.0,69290.0,2.01350527]
[1730446281482,0.000821,69291.0,69290.0,0.74010527]
[1730446283481,0.000821,69291.0,69290.0,0.41077525]
[1730446283747,0.000821,69291.0,69290.0,0.31077525]
[1730446283979,0.000821,69291.0,69290.0,0.30577525]
[1730446284217,0.000821,69291.0,69290.0,0.31077525]
[1730446286066,0.000821,69291.0,69290.0,0.31577525]
[1730446286301,0.000821,69291.0,69290.0,0.31077525]
[1730446286525,0.000821,69291.0,69290.0,0.31577525]
[1730446286958,0.000821,69291.0,69290.0,0.41577525]
[1730446287172,0.000821,69291.0,69290.0,0.59357525]
[1730446291361,0.000821,69291.0,69290.0,0.31077525]
[1730446291622,0.000821,69291.0,69290.0,0.28277525]
[1730446293253,0.000821,69291.0,69290.0,0.30577525]
[1730446293712,0.000821,69291.0,69290.0,0.16145525]
[1730446294224,0.080721,69291.0,69290.0,0.16145525]
[1730446294446,0.080721,69291.0,69290.0,0.30577525]
[1730446294651,0.080721,69291.0,69290.0,0.16145525]
[1730446295749,0.172821,69291.0,69290.0,0.16145525]
[1730446296200,0.172821,69291.0,69289.0,0.023]
[1730446296433,0.144322,69290.0,69289.0,0.16145525]
[1730446297368,0.144322,69290.0,69289.0,0.001642]
[1730446297599,0.318122,69290.0,69289.0,0.001642]
[1730446315063,0.000821,69291.0,69290.0,0.023]
[1730446315064,0.14514,69291.0,69290.0,0.023]
[1730446315677,0.000821,69291.0,69290.0,0.17363002]
[1730446315888,0.000821,69291.0,69290.0,0.45640527]
[1730446316073,0.000821,69291.0,69290.0,0.30577525]
[1730446316949,0.000821,69291.0,69290.0,0.45640527]
[1730446319133,0.28670037,69303.0,69298.0,0.023]
[1730446319349,0.144296,69302.0,69298.0,0.16145525]
[1730446319564,0.289397,69306.0,69300.0,0.023]
[1730446319565,0.000821,69306.0,69300.0,0.023]
[1730446319804,0.000821,69306.0,69298.0,0.43923502]
[1730446319805,0.000821,69306.0,69305.0,0.167289]
[1730446320025,0.000821,69306.0,69305.0,0.30574425]
[1730446321105,0.000821,69306.0,69305.0,0.16145525]
[1730446321319,0.000821,69306.0,69305.0,0.30574425]
[1730446321525,0.144281,69309.0,69306.0,0.023]
[1730446321729,0.042784,69310.0,69306.0,0.023]
[1730446321730,0.187063,69310.0,69306.0,0.16145525]
[1730446322612,0.042784,69310.0,69307.0,0.13845525]
[1730446322828,0.042784,69310.0,69308.0,0.023]
[1730446323283,0.288515,69321.0,69310.0,0.023]
[1730446323284,0.042784,69311.0,69310.0,0.023]
[1730446323518,0.064176,69313.0,69310.0,0.023]
[1730446323519,0.064176,69312.0,69310.0,0.16145525]
[1730446323921,0.06423885,69312.0,69310.0,0.16145525]
[1730446324147,0.20851485,69312.0,69310.0,0.16145525]
[1730446324580,0.06423885,69311.0,69310.0,0.16145525]
[1730446325689,0.06423885,69311.0,69310.0,0.30573425]
[1730446326146,0.06423885,69311.0,69310.0,0.16145525]
[1730446327236,0.22992881,69312.0,69310.0,0.16145525]
[1730446327464,0.24389753,69311.0,69310.0,0.16145525]
[1730446328123,0.15825215,69311.0,69310.0,0.30573425]
[1730446328336,0.243993,69311.0,69310.0,0.30573425]
[1730446328548,0.08574085,69311.0,69310.0,0.30573425]
[1730446330383,0.10717606,69312.0,69311.0,0.167277]
[1730446330607,0.26550695,69312.0,69311.0,0.023]
[1730446330843,0.48130589,69312.0,69311.0,0.023]
[1730446331786,0.322975,69312.0,69311.0,0.023]
[1730446332709,0.144286,69307.0,69306.0,0.023]
[1730446332927,0.144286,69307.0,69306.0,0.16145525]
[1730446339717,0.288554,69311.0,69306.0,0.16145525]
[1730446339915,0.144281,69309.0,69306.0,0.16145525]
[1730446340321,0.144277,69311.0,69306.0,0.30574025]
[1730446340533,0.144282,69309.0,69306.0,0.16145525]
[1730446340742,0.144278,69311.0,69306.0,0.30574125]
[1730446340954,0.144282,69309.0,69306.0,0.16145525]
[1730446341163,0.144284,69308.0,69306.0,0.16145525]
[1730446341569,0.288558,69310.0,69306.0,0.16145525]
[1730446341832,0.144282,69309.0,69306.0,0.16145525]
[1730446342242,0.0781,69316.0,69313.0,0.023]
[1730446342449,0.432793,69317.0,69313.0,0.16145525]
[1730446342659,0.144269,69315.0,69313.0,0.16145525]
[1730446342881,0.144269,69315.0,69314.0,0.023]
[1730446343285,0.000818,69318.0,69314.0,0.16727]
[1730446343486,0.000818,69318.0,69315.0,0.023]
[1730446343700,0.144266,69316.0,69314.0,0.023]
[1730446343912,0.000818,69318.0,69314.0,0.023]
[1730446344122,0.144265,69317.0,69314.0,0.023]
[1730446344767,0.144268,69316.0,69314.0,0.023]
[1730446344970,0.000821,69315.0,69314.0,0.023]
[1730446346532,0.000821,69315.0,69314.0,0.30572525]
[1730446350345,0.000821,69315.0,69314.0,0.16145525]
[1730446350572,0.000821,69315.0,69314.0,0.30572525]
[1730446351210,0.000821,69315.0,69314.0,0.16145525]
[1730446351565,0.177721,69315.0,69314.0,0.16145525]
[1730446351772,0.27439745,69315.0,69314.0,0.16145525]
[1730446352172,0.3710739,69315.0,69301.0,0.21769576]
[1730446352388,0.144281,69309.0,69308.0,0.21769576]
[1730446352906,0.177721,69315.0,69306.0,0.13845525]
[1730446353105,0.144285,69307.0,69306.0,0.13845525]
[1730446353514,0.144285,69307.0,69306.0,0.16145525]
[1730446354727,0.219385,69307.0,69306.0,0.16145525]
[1730446356119,0.219385,69307.0,69306.0,0.023]
[1730446356329,0.318585,69307.0,69306.0,0.023]
[1730446356547,0.151287,69306.0,69290.0,0.21769576]
[1730446356761,0.321887,69306.0,69290.0,0.21769576]
[1730446358225,0.423887,69306.0,69290.0,0.21769576]
[1730446358427,0.421887,69306.0,69290.0,0.21769576]
[1730446358633,0.4446492,69306.0,69290.0,0.21769576]
[1730446358835,0.421887,69306.0,69290.0,0.21769576]
[1730446359444,0.423887,69306.0,69290.0,0.21769576]
[1730446359854,0.421887,69306.0,69290.0,0.21769576]
[1730446360078,0.423887,69306.0,69290.0,0.21769576]
[1730446360286,0.5623643,69306.0,69290.0,0.21769576]
[1730446361049,0.5603643,69306.0,69290.0,0.21769576]
[1730446361956,0.5623643,69306.0,69290.0,0.21769576]
[1730446362946,0.5673643,69306.0,69290.0,0.21769576]
[1730446363359,0.5653643,69306.0,69290.0,0.21769576]
[1730446363909,0.426887,69306.0,69298.0,0.21769576]
[1730446364319,0.4695107,69306.0,69298.0,0.21769576]
[1730446364637,0.426887,69306.0,69298.0,0.21769576]
[1730446365670,0.421887,69306.0,69298.0,0.21769576]
[1730446368005,0.14432,69290.0,69289.0,0.024642]
[1730446368411,0.20880107,69290.0,69289.0,0.024642]
[1730446368825,0.20879725,69290.0,69289.0,0.024642]
[1730446369720,0.14432,69290.0,69289.0,0.024642]
[1730446370551,0.18728882,69290.0,69289.0,0.024642]
[1730446371853,0.18728882,69290.0,69289.0,0.001642]
[1730446372065,0.14432,69290.0,69289.0,0.001642]
[1730446374083,0.39933909,69290.0,69289.0,0.001642]
[1730446374313,0.50680118,69290.0,69289.0,0.001642]
[1730446374519,0.48003909,69290.0,69289.0,0.001642]
[1730446374705,0.58745441,69290.0,69289.0,0.001642]
[1730446374947,0.61851639,69290.0,69289.0,0.001642]
[1730446375421,0.62051639,69290.0,69289.0,0.001642]
[1730446375643,0.61851639,69290.0,69289.0,0.001642]
[1730446375873,0.71851639,69290.0,69289.0,0.001642]
[1730446376097,0.76108757,69290.0,69289.0,0.001642]
[1730446376330,0.76986745,69290.0,69289.0,0.001642]
[1730446376552,0.72729627,69290.0,69289.0,0.001642]
[1730446377452,0.72929627,69290.0,69289.0,0.001642]
[1730446378534,0.71843606,69290.0,69289.0,0.001642]
[1730446380753,0.72043606,69290.0,69289.0,0.001642]
[1730446380988,0.71843606,69290.0,69289.0,0.001642]
[1730446381209,0.57495876,69290.0,69289.0,0.001642]
[1730446381896,0.68230787,69290.0,69289.0,0.001642]
[1730446383809,0.58230787,69290.0,69289.0,0.001642]
[1730446385087,0.58730787,69290.0,69289.0,0.001642]
[1730446385328,0.72578517,69290.0,69289.0,0.001642]
[1730446386173,0.58730787,69290.0,69289.0,0.001642]
[1730446386387,0.58230787,69290.0,69289.0,0.001642]
[1730446391833,0.41020787,69290.0,69289.0,0.001642]
[1730446392047,0.14432,69290.0,69289.0,0.001642]
[1730446392261,0.38869178,69290.0,69289.0,0.001642]
[1730446392670,0.04293908,69291.0,69289.0,0.024642]
[1730446392883,0.08587338,69294.0,69289.0,0.024642]
[1730446392884,0.04293908,69294.0,69289.0,0.024642]
[1730446393101,0.06440862,69296.0,69293.0,0.144314]
[1730446393102,0.04294184,69296.0,69293.0,0.144314]
[1730446393310,0.51879369,69299.0,69292.0,0.023]
[1730446393311,0.33154784,69299.0,69292.0,0.023]
[1730446393552,0.04294184,69300.0,69292.0,0.023]
[1730446393798,0.144306,69298.0,69294.0,0.023]
[1730446394025,0.144309,69296.0,69292.0,0.023]
[1730446394909,0.144312,69295.0,69291.0,0.023]
[1730446395131,0.144312,69295.0,69293.0,0.023]
[1730446395346,0.432918,69297.0,69291.0,0.023]
[1730446395555,0.144313,69294.0,69291.0,0.023]
[1730446396885,0.24084513,69298.0,69291.0,0.023]
[1730446397121,0.14432,69290.0,69289.0,0.001642]
[1730446397559,0.26416184,69290.0,69289.0,0.001642]
[1730446397774,0.22122,69290.0,69289.0,0.001642]
[1730446397985,0.4698085,69290.0,69289.0,0.001642]
[1730446398191,0.4718085,69290.0,69289.0,0.001642]
[1730446398401,0.69616949,69290.0,69289.0,0.001642]
[1730446398624,0.60396949,69290.0,69289.0,0.001642]
[1730446399558,0.46549219,69290.0,69289.0,0.001642]
[1730446399776,0.3796085,69290.0,69289.0,0.001642]
[1730446400668,0.46549219,69290.0,69289.0,0.001642]
[1730446400890,0.20869039,69290.0,69289.0,0.001642]
[1730446401122,0.14432,69290.0,69289.0,0.001642]
[1730446401577,0.14432,69290.0,69289.0,0.024642]
[1730446402880,0.04291935,69293.0,69289.0,0.024642]
[1730446403104,0.14432,69290.0,69289.0,0.024642]
[1730446406008,0.29496213,69292.0,69289.0,0.024642]
[1730446406212,0.14432,69290.0,69289.0,0.024642]
[1730446407460,0.15064513,69292.0,69289.0,0.024642]
[1730446407665,0.29496213,69292.0,69290.0,0.023]
[1730446408505,0.15064513,69292.0,69290.0,0.023]
[1730446409584,0.144314,69293.0,69290.0,0.023]
[1730446409585,0.04293985,69294.0,69290.0,0.023]
[1730446409802,0.04293985,69299.0,69294.0,0.023]
[1730446410049,0.48218298,69301.0,69296.0,0.023]
[1730446410289,0.29495113,69297.0,69296.0,0.023]
[1730446410522,0.29495113,69297.0,69290.0,0.023]
[1730446410523,0.144318,69291.0,69290.0,0.023]
[1730446412704,0.144315,69293.0,69290.0,0.023]
[1730446413152,0.144311,69295.0,69290.0,0.167318]
[1730446413361,0.144313,69294.0,69290.0,0.023]
[1730446414266,0.144315,69293.0,69290.0,0.023]
[1730446414495,0.288616,69296.0,69290.0,0.023]
[1730446414706,0.144313,69294.0,69290.0,0.023]
[1730446415363,0.288616,69296.0,69290.0,0.16145525]
[1730446415587,0.144312,69295.0,69290.0,0.30577425]
[1730446416069,0.21508013,69301.0,69292.0,0.0772]
[1730446416070,0.144302,69299.0,69292.0,0.0772]
[1730446416285,0.144302,69299.0,69293.0,0.16145525]
[1730446416504,0.144302,69299.0,69296.0,0.023]
[1730446416942,0.144302,69299.0,69294.0,0.144311]
[1730446416943,0.144302,69299.0,69295.0,0.144309]
[1730446417171,0.144305,69298.0,69294.0,0.023]
[1730446417381,0.2886,69300.0,69294.0,0.023]
[1730446417382,0.14431,69296.0,69294.0,0.023]
[1730446417611,0.2886,69300.0,69294.0,0.023]
[1730446417822,0.144307,69297.0,69294.0,0.023]
[1730446419332,0.288604,69299.0,69294.0,0.023]
[1730446419549,0.144306,69297.0,69294.0,0.023]
[1730446420200,0.288608,69298.0,69294.0,0.023]
[1730446420654,0.14431,69296.0,69294.0,0.023]
[1730446421366,0.144295,69302.0,69294.0,0.16731]
[1730446421575,0.288598,69301.0,69294.0,0.023]
[1730446421783,0.144307,69297.0,69294.0,0.023]
[1730446422053,0.144307,69297.0,69296.0,0.023]
[1730446422295,0.144307,69297.0,69294.0,0.023]
[1730446424079,0.144309,69296.0,69294.0,0.023]
[1730446424525,0.144308,69297.0,69294.0,0.023]
[1730446428244,0.288608,69298.0,69294.0,0.023]
[1730446428467,0.144308,69296.0,69294.0,0.023]